Department Family,Entity,Date,Expenses Type,Expense Area,Supplier,Transaction Number, Total 
Department of Health,The Christie NHS Foundation Trust,04/04/2019,Drugs,Drugs,ALCURA UK LIMITED,0000611082,"91,538.71"
Department of Health,The Christie NHS Foundation Trust,17/04/2019,Drugs,Drugs,ALCURA UK LIMITED,0000612616,"83,209.81"
Department of Health,The Christie NHS Foundation Trust,11/04/2019,Drugs,Christie Medical Physics,ALLIANCE MEDICAL RADIOPHARMACY LIMITED,0000611130,"42,644.22"
Department of Health,The Christie NHS Foundation Trust,08/04/2019,Drugs,Drugs,BAXTER HEALTHCARE LTD,0000610903,"441,738.44"
Department of Health,The Christie NHS Foundation Trust,11/04/2019,Drugs,Drugs,BAXTER HEALTHCARE LTD,0000610906,"568,610.00"
Department of Health,The Christie NHS Foundation Trust,17/04/2019,Drugs,Drugs,BAXTER HEALTHCARE LTD,0000611091,"420,211.66"
Department of Health,The Christie NHS Foundation Trust,25/04/2019,Medical Equipment Maintenance Contract,Clinical Support & Specialist Surgery,CPP FACILITIES LLP,0000610877,"198,185.82"
Department of Health,The Christie NHS Foundation Trust,25/04/2019,Medical Equipment Maintenance Contract,Clinical Support & Specialist Surgery,CPP FACILITIES LLP,0000610890,"-174,671.29"
Department of Health,The Christie NHS Foundation Trust,17/04/2019,Drugs,Drugs,EAST CHESHIRE NHS TRUST,0000604681,"106,040.40"
Department of Health,The Christie NHS Foundation Trust,17/04/2019,Energy Contract Mar 19,Network Services,EDF ENERGY,0000612686,"45,924.72"
Department of Health,The Christie NHS Foundation Trust,04/04/2019,Childcare Voucer- Mar 19,Human Resources,FIDELITI LIMITED,0000610514,"27,818.36"
Department of Health,The Christie NHS Foundation Trust,17/04/2019,Childcare Voucer- Apr 19,Human Resources,FIDELITI LIMITED,0000612329,"27,672.25"
Department of Health,The Christie NHS Foundation Trust,17/04/2019,IT Equipment,Capital,INSIGHT DIRECT (UK) LTD,0000611458,"263,785.77"
Department of Health,The Christie NHS Foundation Trust,11/04/2019,Paterson Development,Capital,INTERSERVE CONSTRUCTION LTD,0000611853,"220,737.05"
Department of Health,The Christie NHS Foundation Trust,25/04/2019,Chemotherapy Prescribing System Apr- Jun 19,FInance & Business Development,IQ HEALTH TECH LTD,0000612046,"32,500.00"
Department of Health,The Christie NHS Foundation Trust,17/04/2019,Drugs,Drugs,LLOYDSPHARMACY CLINICAL HOMECARE,0000612553,"28,942.08"
Department of Health,The Christie NHS Foundation Trust,08/04/2019,Rates 19/20,Estates & Facilities,M/CR CITY COUNCIL (RATES) DD,0000612493,"77,880.44"
Department of Health,The Christie NHS Foundation Trust,04/04/2019,Clinical Nurse Oct 18-Dec 18,Clinical Support & Specialist Surgery,MANCHESTER UNIVERSITY NHS FT,0000603096,"28,211.69"
Department of Health,The Christie NHS Foundation Trust,04/04/2019,Clinical Nurse Jan 19-Mar 19,Clinical Support & Specialist Surgery,MANCHESTER UNIVERSITY NHS FT,0000609989,"28,211.69"
Department of Health,The Christie NHS Foundation Trust,04/04/2019,Critical Care Mar 19,Clinical Support & Specialist Surgery,MANCHESTER UNIVERSITY NHS FT,0000610138,"29,638.00"
Department of Health,The Christie NHS Foundation Trust,04/04/2019,Anaesthetics Mar 19,Clinical Support & Specialist Surgery,MANCHESTER UNIVERSITY NHS FT,0000610196,"27,148.17"
Department of Health,The Christie NHS Foundation Trust,11/04/2019,Research Project,Research & Development,MANCHESTER UNIVERSITY NHS FT,0000606405,"76,633.00"
Department of Health,The Christie NHS Foundation Trust,25/04/2019,Building Works,Capital,MEDWAY HEATING BOLTON LTD,0000611346,"36,005.04"
Department of Health,The Christie NHS Foundation Trust,04/04/2019,Drugs,Drugs,MID CHESHIRE HOSPITALS NHS FT,0000596516,"102,355.92"
Department of Health,The Christie NHS Foundation Trust,11/04/2019,Fixed Element 17/18,Network Services,MID CHESHIRE HOSPITALS NHS FT,0000577515,"33,288.00"
Department of Health,The Christie NHS Foundation Trust,11/04/2019,Pathology Apr-Oct 18,Network Services,MID CHESHIRE HOSPITALS NHS FT,0000602438,"29,264.33"
Department of Health,The Christie NHS Foundation Trust,15/04/2019,Blood Products,Network Services,NHS BLOOD AND TRANSPLANT,0000612982,"172,291.34"
Department of Health,The Christie NHS Foundation Trust,16/04/2019,NHS Litigation (NHSLA),FInance & Business Development,NHS LITIGATION AUTHORITY,0000612980,"111,326.40"
Department of Health,The Christie NHS Foundation Trust,25/04/2019,Stock for all Wards & Departments,All Wards and Departments,NHS SUPPLY CHAIN,0000611840,"41,417.28"
Department of Health,The Christie NHS Foundation Trust,25/04/2019,Stock for all Wards & Departments,All Wards and Departments,NHS SUPPLY CHAIN,0000611448,"967,999.61"
Department of Health,The Christie NHS Foundation Trust,11/04/2019,Proton Beam Development (PBT),Capital,ONCOLOGY IMAGING SYSTEMS LTD,0000602795,"45,895.20"
Department of Health,The Christie NHS Foundation Trust,04/04/2019,Audit Services,Finance & Business Development,ROYAL LIVERPOOL & BROADGREEN NHS TRUST,0000609360,"25,662.00"
Department of Health,The Christie NHS Foundation Trust,17/04/2019,Software Licences,Finance & Business Development,SOFTCAT PLC,0000610721,"31,840.50"
Department of Health,The Christie NHS Foundation Trust,04/04/2019,Chemotherapy SLA Nov 18-Mar 19,Network Services,STOCKPORT NHS FOUNDATION TRUST,0000609385,"136,094.60"
Department of Health,The Christie NHS Foundation Trust,25/04/2019,Patient Testing Service ,Clinical Support & Specialist Surgery,THE CHRISTIE PATHOLOGY PARTNERSHIP LLP,0000610878,"417,025.51"
Department of Health,The Christie NHS Foundation Trust,25/04/2019,Patient Testing Service ,Clinical Support & Specialist Surgery,THE CHRISTIE PATHOLOGY PARTNERSHIP LLP,0000610887,"-367,545.91"
Department of Health,The Christie NHS Foundation Trust,04/04/2019,Christie @ Oldham - Jan 19 to Mar 19,Estates & Facilities,THE PENNINE ACUTE HOSPITAL NHS TRUST,0000610218,"38,140.50"
Department of Health,The Christie NHS Foundation Trust,25/04/2019,Software Licences,FInance & Business Development,TRUST MARQUE SOLUTIONS LTD,0000611465,"60,676.80"
Department of Health,The Christie NHS Foundation Trust,11/04/2019,Consultancy,Programme Management Office,UNIQUE HEALTH SOLUTIONS,0000612166,"25,854.00"
Department of Health,The Christie NHS Foundation Trust,04/04/2019,Research Project,Research & Development,UNIVERSITY OF MANCHESTER,0000605383,"50,240.84"
Department of Health,The Christie NHS Foundation Trust,25/04/2019,Research Project,Research & Development,UNIVERSITY OF MANCHESTER,0000612278,"46,755.60"
Department of Health,The Christie NHS Foundation Trust,17/04/2019,Proton Beam Development (PBT),Capital,VARIAN MEDICAL SYSTEMS UK LTD,0000611036,"123,735.37"
Department of Health,The Christie NHS Foundation Trust,17/04/2019,Proton Beam Development (PBT),Capital,VARIAN MEDICAL SYSTEMS UK LTD,0000611038,"34,400.59"
Department of Health,The Christie NHS Foundation Trust,11/04/2019,Energy Contract- Jan 19,Estates & Facilities,VEOLIA ENERGY &UTILITY SERVICES UK PLC,0000607795,"307,285.87"
Department of Health,The Christie NHS Foundation Trust,11/04/2019,Energy Contract- Feb 19,Estates & Facilities,VEOLIA ENERGY &UTILITY SERVICES UK PLC,0000610181,"232,742.48"
